Cogmind - Beta 15 @@@ ROGUE MODE // 2025.09.09 @ 20:33:14 Player: odium reigns Result: Destroyed by G-50 Soldier with Heavy Laser Performance ------------- Evolutions (2) 1000 Regions Visited (6) 1200 Robots Destroyed (105) 525 Value Destroyed (4076) 4076 Prototype IDs (7) 140 Alien Tech Used (0) 0 Bonus (1682) 1682 TOTAL SCORE: 8623 Bonus ------- High Alert Combat Kills 982 Entered Garrisons 200 Used RIF Installer 500 Cogmind --------- Core Integrity 0/550 Matter 179/300 Energy 89/100 System Corruption 0% Temperature Warm (199) Movement Core (100) Ox1 Location -8/Materials Parts ------- > --- POWER (1) -------- (None) > --- PROPULSION (3) --- (None) > --- UTILITY (3) ------ Shock Absorption System > --- WEAPON (4) ------- Plasma Cutter > --- INVENTORY (5) ---- Compact Matter Pod (150) Relay Coupler [Grunt] (21) Relay Coupler [Duelist] (23) Relay Coupler [Demolisher] (22) Relay Coupler [Specialist] (24) Peak State ------------ > --- POWER ------------ Cooled Ion Engine > --- PROPULSION ------- Light Treads Light Treads Light Treads > --- UTILITY ---------- Cargo Storage Unit Improved System Shield > --- WEAPON ----------- Gauss Rifle Gauss Rifle Gauss Rifle Advanced Assault Cannon > --- INVENTORY -------- Cooled Ion Engine Light Nuclear Core Armored Treads Carbon-fiber Leg Carbon-fiber Leg Titanium Leg Improved Carbon-fiber Leg Improved Heat Sink Improved Cooling System Improved Cooling System Compact Matter Pod Compact Matter Pod Compact Matter Pod Compact Matter Pod Sensor Array Advanced Signal Interpreter Advanced Terrain Scanner Shock Absorption System Relay Coupler [NC] Relay Coupler [Swarmer] Relay Coupler [Grunt] Relay Coupler [Sentry] Relay Coupler [Demolisher] Relay Coupler [Specialist] Relay Coupler [Hunter] Relay Coupler [Behemoth] Plasma Cannon Improved Assault Rifle Improved Light Cannon Advanced Assault Cannon [Rating: 39] Favorites ----------- Power Cooled Ion Engine Engine Cooled Ion Engine Power Core Light Nuclear Core Propulsion Light Treads Treads Light Treads Leg Carbon-fiber Leg Utility Cargo Storage Unit Device Sensor Array Storage Cargo Storage Unit Processor Signal Interpreter Hackware Improved System Shield Weapon Advanced Assault Cannon Energy Gun Precision Beam Rifle Energy Cannon Plasma Cannon Ballistic Gun Gauss Rifle Ballistic Cannon Advanced Assault Cannon Special Weapon Mining Laser Build | -11 -10 -10 -9 -8 -8 -8 ------- Run | Yrd Mat Min Mat Mat Gar Mat Slots Evolved 4 | . . . 2 2 . . Power . | . . . . . . . Propulsion 1 | . . . . 1 . . Utility 1 | . . . . 1 . . Weapon 2 | . . . 2 . . . Parts Attached 55 | 7 4 . 8 8 15 13 Power 6 | 1 . . 2 1 . 2 Engine 5 | 1 . . 2 1 . 1 Core 1 | . . . . . . 1 Reactor . | . . . . . . . Propulsion 18 | 2 . . 2 1 9 4 Treads 15 | 2 . . 2 1 8 2 Leg 3 | . . . . . 1 2 Wheel . | . . . . . . . Hover . | . . . . . . . Flight . | . . . . . . . Utility 10 | 2 1 . 1 2 1 3 Device 5 | 1 1 . . . . 3 Storage 3 | 1 . . 1 1 . . Processor 1 | . . . . 1 . . Hackware 1 | . . . . . 1 . Protection . | . . . . . . . Artifact . | . . . . . . . Weapon 21 | 2 3 . 3 4 5 4 Energy Gun 3 | 1 . . . 1 . 1 Energy Cannon 1 | . . . . . . 1 Ballistic Gun 6 | 1 . . 1 . 4 . Ballistic Cannon 9 | . 2 . 2 3 1 1 Launcher . | . . . . . . . Special Weapon 2 | . 1 . . . . 1 Impact Weapon . | . . . . . . . Slashing Weapon . | . . . . . . . Piercing Weapon . | . . . . . . . Special Melee Weapon . | . . . . . . . Unidentified Prototypes 4 | . . . 2 1 . 1 Parts Lost 21 | . . . 2 . 1 18 Power 3 | . . . 1 . . 2 Propulsion 8 | . . . 1 . 1 6 Utility 2 | . . . . . . 2 Weapon 8 | . . . . . . 8 Highest Loss Streak 18 | . . . 1 . 1 18 To Critical Strikes . | . . . . . . . Average Backups 23 | 3 7 8 7 11 29 28 Power 1 | 1 1 1 . 1 2 1 Propulsion 5 | 1 . . . 2 6 3 Utility 12 | . 1 4 4 3 16 19 Weapon 3 | 1 3 3 1 3 4 2 Tool/Special . | . . . . . . . Unused Backups 36 | . 6 . . 1 11 18 Power 3 | . 2 . . . 1 . Propulsion 7 | . 2 . . . 4 1 Utility 23 | . . . . 1 5 17 Weapon 3 | . 2 . . . 1 . Tool/Special . | . . . . . . . Average Slot Usage (%) 91 | . 100 100 95 95 89 85 Engine 9 | . 14 14 10 9 9 8 Treads 26 | . 28 28 19 26 26 24 Device 6 | . 14 14 11 9 5 . Storage 9 | . 14 14 11 9 9 9 Hackware 2 | . . . . . 3 8 Energy Gun 2 | . 4 . . 3 1 4 Ballistic Gun 17 | . 3 . 3 9 21 20 Ballistic Cannon 15 | . 16 28 39 23 12 9 Peak Build Rating 39 | 9 9 7 14 29 39 39 Average Rating 29 | 5 8 7 10 24 34 37 On Entrance 15 | . 9 7 7 14 29 39 Naked Turns . | . . . . . . . Heaviest Build 168 | 14 17 17 31 166 168 166 Greatest Support 60 | 40 40 40 40 60 60 60 Greatest Overweight (x) 7 | . . . 1 2 4 7 Average Overweight (x) 1 | . . . . . 2 2 Largest Inventory Capacity 30 | 8 8 8 10 30 30 30 Average Capacity 25 | 7 8 8 8 17 30 30 Most Carried 30 | 7 8 8 10 21 30 30 Average Carried 23 | 3 7 8 7 11 29 28 Final Capacity 30 | 8 8 8 10 30 30 5 Final Carried 30 | 7 8 8 10 21 30 5 Class Distribution -------------------- 47% | Hauler-Skirmisher 29% | Hauler-Gunner 12% | Skirmisher 9% | Mutant Dominant Class ---------------- Mutant | -10/Materials Mutant | -10/Mines Skirmisher | -9/Materials Skirmisher | -8/Materials Hauler-Skirmisher | -8/Garrison Hauler-Gunner | -8/Materials Resources | -11 -10 -10 -9 -8 -8 -8 ----------- Run | Yrd Mat Min Mat Mat Gar Mat Matter Collected 4663 | 285 166 176 557 624 2428 427 Remotely . | . . . . . . . Salvage Created 3258 | 151 260 66 531 336 1324 590 Parts 182 | 9 12 10 26 20 87 18 Haulers Intercepted 5 | . . . 3 1 . 1 Recyclers Shooed 1 | . . 1 . . . . Parts Field Recycled . | . . . . . . . Retrieved Matter . | . . . . . . . Parts Self-Destructed . | . . . . . . . Prevented . | . . . . . . . Kills | -11 -10 -10 -9 -8 -8 -8 ------- Run | Yrd Mat Min Mat Mat Gar Mat Combat Hostiles Destroyed 79 | . 6 4 8 9 41 11 Guns 34 | . 2 . 2 3 22 5 Cannons 45 | . 4 4 6 6 19 6 Classes Destroyed 13 | 3 2 1 4 1 2 . Worker 6 | 2 . . 1 2 . 1 Builder 1 | . . . 1 . . . Tunneler 3 | 3 . . . . . . Hauler 5 | . . . 3 1 . 1 Recycler 8 | 1 2 1 2 1 . 1 Watcher 4 | . . . 1 3 . . Swarmer 21 | . 3 3 . 4 11 . Grunt 39 | . 3 . 7 2 18 9 Duelist 3 | . . . . . 1 2 Sentry 10 | . . . 1 2 7 . Specialist 2 | . . . . . 2 . Hunter 3 | . . . . 1 2 . Assembled 1 | . . 1 . . . . Best Kill Streak 8 | 4 4 3 5 4 8 5 Combat Bots Only 8 | . 3 3 4 4 8 5 Max Kills in Single Turn 3 | 1 1 1 2 2 3 1 Gunslinging . | . . . . . . . Exploded . | . . . . . . . Melee . | . . . . . . . Uniques/NPCs Destroyed . | . . . . . . . Combat | -11 -10 -10 -9 -8 -8 -8 -------- Run | Yrd Mat Min Mat Mat Gar Mat Hostile Shots Fired 429 | . 29 20 24 53 130 173 Missed 110 | . 9 6 4 11 38 42 Hits 319 | . 20 14 20 42 92 131 Melee 13 | . . . . . . 13 Projectile 306 | . 20 14 20 42 92 118 Critical Strikes 13 | . . . 1 1 4 7 Part Disruptions 1 | . . 1 . . . . Damage Taken 4873 | . 196 134 248 526 1385 2384 Core 619 | . 22 8 24 26 191 348 Absorbed by Shields . | . . . . . . . Regen/Repaired (Parts) 96 | . . . . 96 . . Core Remaining (%) 94 | 100 . 88 94 . . . Volleys Fired 243 | 15 22 13 27 41 86 39 Largest 4 | 2 2 2 4 4 4 4 Hottest 164 | 70 150 60 120 143 164 156 Shots Fired 785 | 30 42 26 108 138 308 133 Gun 379 | 30 9 . 10 45 192 93 Cannon 399 | . 26 26 98 93 116 40 Launcher . | . . . . . . . Special 7 | . 7 . . . . . Kinetic 702 | 15 28 26 108 134 291 100 Thermal 83 | 15 14 . . 4 17 33 Explosive . | . . . . . . . Electromagnetic . | . . . . . . . Robot Hit Streak 18 | 7 6 6 11 6 18 7 Robot Miss Streak 7 | 2 3 4 4 4 7 6 Penetration Max 1 | . . . . . 1 1 Secondary Targets . | . . . . . . . Shots Hit Robots 392 | 21 22 14 44 66 155 70 Core Hits 168 | 9 11 6 21 23 69 29 Critical Kills 2 | . . . . . 2 . Critical Parts Destroyed 3 | . . . . . 1 2 Critical Strikes 19 | 4 1 . . 2 9 3 Burn 7 | 4 1 . . 1 . 1 Destroy 5 | . . . . . 3 2 Blast 7 | . . . . 1 6 . Melee Attacks . | . . . . . . . Impact . | . . . . . . . Slashing . | . . . . . . . Piercing . | . . . . . . . Sneak Attacks . | . . . . . . . Combat Hostiles . | . . . . . . . Follow-up Attacks . | . . . . . . . Damage Inflicted 8468 | 219 374 268 988 1398 3407 1814 Guns 3876 | 219 104 . 101 409 1938 1105 Cannons 4484 | . 246 259 812 989 1469 709 Explosions 75 | . . . 75 . . . Melee . | . . . . . . . Ramming 9 | . . 9 . . . . Kinetic 7473 | 80 263 259 913 1364 3235 1359 Thermal 911 | 139 111 . . 34 172 455 Explosive . | . . . . . . . Electromagnetic 75 | . . . 75 . . . Impact . | . . . . . . . Slashing . | . . . . . . . Piercing . | . . . . . . . Highest Corruption . | . . . . . . . Average Corruption . | . . . . . . . Corruption Purged . | . . . . . . . Corruption Blocked . | . . . . . . . Overload Shots . | . . . . . . . Overflow Damage 34 | . . 4 . 10 13 7 Projectiles 34 | . . 4 . 10 13 7 Explosions . | . . . . . . . Melee . | . . . . . . . Knockbacks 29 | . . 3 5 4 5 12 Impact . | . . . . . . . Kinetic 28 | . . 3 5 4 5 11 Secondary 1 | . . . . . . 1 Self-Inflicted Damage 77 | . . . . . 77 . Shots 1 | . . . . . 1 . Rammed 3 | . . 3 . . . . Targets Rammed 3 | . . 3 . . . . Kicked . | . . . . . . . Crushed . | . . . . . . . Highest Temperature 461 | 140 250 60 305 403 339 461 Average Temperature 115 | 51 75 28 102 120 108 177 Received Heat Transfer 2220 | . 54 120 138 135 657 1116 Effects 11 | . . . . 1 2 8 Shutdowns 3 | . . . . 1 1 1 Energy Bleed 3 | . . . . . 1 2 Interference 5 | . . . . . . 5 Siege Activations . | . . . . . . . Martial Activations . | . . . . . . . Shielding Activations . | . . . . . . . Robots Disrupted . | . . . . . . . Combat Hostiles . | . . . . . . . Robots Corrupted . | . . . . . . . Combat Hostiles . | . . . . . . . Parts Fried . | . . . . . . . Impact Corruptions . | . . . . . . . Robots Melted . | . . . . . . . Combat Hostiles . | . . . . . . . Parts Melted 2 | 1 . . . . . 1 Heat Transferred 2568 | 703 383 . . 148 370 964 Parts Sabotaged . | . . . . . . . Parts Stolen . | . . . . . . . Parts Stripped . | . . . . . . . Power Chain Reactions . | . . . . . . . Alert | -11 -10 -10 -9 -8 -8 -8 ------- Run | Yrd Mat Min Mat Mat Gar Mat Maximum Alert Level 5 | . . . . . 5 4 Low Security (%) 37 | 100 100 100 100 100 14 . Level 1 4 | . . . . . 6 . Level 2 9 | . . . . . 14 . Level 3 11 | . . . . . 17 . Level 4 15 | . . . . . 10 100 Level 5 22 | . . . . . 34 . High Security . | . . . . . . . Max Security . | . . . . . . . Peak Influence 2838 | 15 72 82 154 192 2838 1386 Initial 1383 | . . 12 10 59 29 1383 Average 904 | 2 33 50 63 116 1205 1322 Influence Increases 4069 | 30 187 75 280 361 2819 317 Destroy 0b10 Robot/C 1560 | . 120 60 160 180 820 220 Destroy 0b10 Robot/NC 135 | 30 10 5 40 35 . 15 Destroy Leader 168 | . 20 10 38 48 30 22 Successful Hack 38 | . 5 . 11 8 14 . Disable Machine 105 | . 30 . 30 30 . 15 Anti-Garrison Action 1900 | . . . . . 1900 . Destroy Structure 88 | . 2 . 1 30 40 15 Lose Combat Pursuer 75 | . . . . 30 15 30 Influence Decreases 2795 | 30 155 80 165 457 27 1881 Entered New Map 1592 | . . 20 17 83 17 1455 Time Decay 993 | 30 155 60 128 374 . 246 Lost Part 210 | . . . 20 . 10 180 Squads Dispatched 4 | . . . 1 . . 3 Investigation 1 | . . . 1 . . . Extermination . | . . . . . . . Reinforcement 1 | . . . . . . 1 Assault 2 | . . . . . . 2 Garrison . | . . . . . . . Intercept . | . . . . . . . Searches Triggered . | . . . . . . . Construction Impeded . | . . . . . . . Haulers Reinforced . | . . . . . . . Active Scanning Responses . | . . . . . . . Cargo Convoy Interrupts . | . . . . . . . Stealth | -11 -10 -10 -9 -8 -8 -8 --------- Run | Yrd Mat Min Mat Mat Gar Mat Distress Signals 6 | . . . 1 5 . . Communications Jammed . | . . . . . . . Distress Signals . | . . . . . . . Times Spotted 113 | . 9 9 9 19 42 25 Peak Tracking Total 9 | . 3 4 2 4 6 9 Tactical Retreats 5 | . . 1 . 2 1 1 Traps | -11 -10 -10 -9 -8 -8 -8 ------- Run | Yrd Mat Min Mat Mat Gar Mat Traps Triggered 13 | . . . 1 1 11 . Indirectly . | . . . . . . . Trap Hack Attempts . | . . . . . . . Triggered . | . . . . . . . Disarmed . | . . . . . . . Reprogrammed . | . . . . . . . Reused . | . . . . . . . Traps Extracted . | . . . . . . . Installed . | . . . . . . . Triggered . | . . . . . . . Machines | -11 -10 -10 -9 -8 -8 -8 ---------- Run | Yrd Mat Min Mat Mat Gar Mat Machines Disabled 13 | . 2 . 2 2 6 1 Max in Single Turn 2 | . 1 . 1 1 2 1 Garrison Relay 4 | . . . . . 4 . Phase Generator 1 | . . . . . 1 . Machines Repaired . | . . . . . . . Machines Dismantled . | . . . . . . . Machines Sabotaged . | . . . . . . . Overloaded Fab Kills . | . . . . . . . Hacking | -11 -10 -10 -9 -8 -8 -8 --------- Run | Yrd Mat Min Mat Mat Gar Mat Machines Accessed 11 | . 2 . 2 3 4 . Terminals 9 | . 2 . 2 1 4 . Fabricators . | . . . . . . . Repair Stations 1 | . . . . 1 . . Recycling Units . | . . . . . . . Scanalyzers . | . . . . . . . Garrison Access 1 | . . . . 1 . . Total Hacks 26 | . 4 . 7 6 9 . Successful 11 | . 1 . 4 4 2 . Failed 15 | . 3 . 3 2 7 . Catastrophic 2 | . . . 1 . 1 . Database Lockouts . | . . . . . . . Manual 2 | . . . 2 . . . Terminals 22 | . 4 . 7 2 9 . Fabricators . | . . . . . . . Repair Stations 2 | . . . . 2 . . Recycling Units . | . . . . . . . Scanalyzers . | . . . . . . . Garrison Access 2 | . . . . 2 . . Terminal Hacks 8 | . 1 . 4 1 2 . Prototype ID Bank 2 | . . . 2 . . . Emergency Access Points 2 | . . . . 1 1 . Hauler Manifests 3 | . 1 . 2 . . . Security Stations 1 | . . . . . 1 . Fabricator Hacks . | . . . . . . . Repair Station Hacks 2 | . . . . 2 . . Scan Component 1 | . . . . 1 . . Repair 1 | . . . . 1 . . Recycling Unit Hacks . | . . . . . . . Scanalyzer . | . . . . . . . Garrison Access Hacks 1 | . . . . 1 . . Unlock Access 1 | . . . . 1 . . Unauthorized Hacks . | . . . . . . . Terminals . | . . . . . . . Fabricators . | . . . . . . . Repair Stations . | . . . . . . . Recycling Units . | . . . . . . . Scanalyzers . | . . . . . . . Garrison Access . | . . . . . . . Data Cores Recovered . | . . . . . . . Used . | . . . . . . . Hacking Detections 9 | . 2 . 2 2 3 . Full Trace Events 1 | . . . . . 1 . Feedback Events . | . . . . . . . Feedback Blocked . | . . . . . . . Robot Schematics Acquired . | . . . . . . . Robots Built . | . . . . . . . Authchips . | . . . . . . . Time . | . . . . . . . Total Robot Build Rating . | . . . . . . . Part Schematics Acquired . | . . . . . . . Parts Built . | . . . . . . . Authchips . | . . . . . . . Time . | . . . . . . . Total Part Build Rating . | . . . . . . . Parts Repaired 1 | . . . . 1 . . Time 26 | . . . . 26 . . Parts Recycled . | . . . . . . . Recycled Matter . | . . . . . . . Retrieved Matter . | . . . . . . . Retrieved Components . | . . . . . . . Parts Scanalyzed . | . . . . . . . Part Schematics Acquired . | . . . . . . . Parts Damaged . | . . . . . . . Bothacking | -11 -10 -10 -9 -8 -8 -8 ------------ Run | Yrd Mat Min Mat Mat Gar Mat Used RIF Installer 1 | . . . . . 1 . Robots Hacked . | . . . . . . . Non-combat . | . . . . . . . Combat . | . . . . . . . Robot Hacks Applied . | . . . . . . . Relay Couplers Released 16 | . . . . . 16 . Machine Destruction 16 | . . . . . 16 . Fabnet Peak Effective % . | . . . . . . . Robots Rewired . | . . . . . . . Allies Hacked . | . . . . . . . Hacks Repelled . | . . . . . . . Allies | -11 -10 -10 -9 -8 -8 -8 -------- Run | Yrd Mat Min Mat Mat Gar Mat Total Allies . | . . . . . . . Largest Group . | . . . . . . . Highest-Rated Group . | . . . . . . . Highest-Rated Ally . | . . . . . . . Total Orders . | . . . . . . . Ally Attacks . | . . . . . . . Total Damage . | . . . . . . . Kills . | . . . . . . . Allies Corrupted . | . . . . . . . Allies Melted . | . . . . . . . Intel | -11 -10 -10 -9 -8 -8 -8 ------- Run | Yrd Mat Min Mat Mat Gar Mat Active Infowar (turns) 4355 | 14 325 135 308 876 2697 . Sensors 4318 | . 302 135 308 876 2697 . Terrain 37 | 14 23 . . . . . Robot Analysis Total . | . . . . . . . Derelict Logs Recovered . | . . . . . . . Drone Launches . | . . . . . . . Drone Recoveries . | . . . . . . . Exploration | -11 -10 -10 -9 -8 -8 -8 ------------- Run | Yrd Mat Min Mat Mat Gar Mat Turns Passed 6471 | 140 325 135 308 876 4150 537 Spaces Moved 1988 | 53 141 58 114 330 1175 117 Core 3 | 3 . . . . . . Treads 1983 | 50 141 58 114 330 1175 115 Legs 2 | . . . . . . 2 Wheels . | . . . . . . . Hover . | . . . . . . . Flight . | . . . . . . . Fastest Speed 50 | 50 160 160 160 160 320 320 Average Speed 274 | 153 160 160 173 208 322 324 Slowest Speed 730 | 160 160 160 240 320 480 730 Overloaded Moves . | . . . . . . . Propulsion Burnouts . | . . . . . . . Robots Hopped . | . . . . . . . Potential Cave-ins . | . . . . . . . Cave-ins Triggered . | . . . . . . . Exploration Rate (%) 27 | 6 40 7 16 23 91 12 Regions Visited 6 Branch Regions 1 Pre-discovered Areas . | . . . . . . . Known Exits Taken 1 | . . . . 1 . . Unknown Exits Taken 4 | 1 1 1 1 . . . Scrap Searched . | . . . . . . . Spaces Dug 1 | . . . . . 1 . Terrain Destroyed 103 | . 2 1 . 30 58 12 Melee . | . . . . . . . Projectile 48 | . 2 1 . 30 3 12 AOE 55 | . . . . . 55 . Terrain Rammed . | . . . . . . . Walls Destroyed . | . . . . . . . Machines Disabled . | . . . . . . . Actions | -11 -10 -10 -9 -8 -8 -8 --------- Run | Yrd Mat Min Mat Mat Gar Mat Total 2455 | 81 187 73 156 423 1348 187 Wait 20 | . . . . 9 9 2 Move 1984 | 52 140 58 113 330 1174 117 Hop . | . . . . . . . Pick Up 70 | 7 8 . 4 20 25 6 Fast Attach 23 | 7 3 . 3 8 2 . Attach 21 | . . . 2 2 3 14 Detach 2 | . 1 . . 1 . . Swap 22 | . 3 . 4 2 10 3 Drop 52 | . 10 . 3 10 23 6 Fire 243 | 15 22 13 27 41 86 39 Melee . | . . . . . . . Ram . | . . . . . . . Kick . | . . . . . . . Crush 2 | . . 2 . . . . Escape Stasis 16 | . . . . . 16 . Rewire . | . . . . . . . Trap . | . . . . . . . Miscellaneous . | . . . . . . . Route ------- -11/Scrapyard -10/Materials (discovered 2 exits: *Mat / [*Min]) -10/Mines -9/Materials -8/Materials -8/Garrison (discovered 3 exits: [*Mat x3]) -8/Materials History --------- Turn | Location | Event 11 | -11/Scrapyard | Discovered new exit (range 13) 141 | -11/Scrapyard | Entered Materials 313 | -10/Materials | Build established: Mutant 373 | -10/Materials | Discovered new exit (range 9) 439 | -10/Materials | Discovered new exit (range 7) 466 | -10/Materials | Entered Mines 505 | -10/Mines | Assembled infested the area 510 | -10/Mines | Assisted by a Guerilla fighting off Assembled 597 | -10/Mines | Discovered new exit (range 3) 601 | -10/Mines | Entered Materials 601 | -9/Materials | Evolved 2 slots: Weapon x2 877 | -9/Materials | Discovered new exit (range 14) 899 | -9/Materials | Build established: Skirmisher 909 | -9/Materials | Entered another Materials area 909 | -8/Materials | Evolved 2 slots: Propulsion x1, Utility x1 1182 | -8/Materials | Repaired Lgt. Treads 1723 | -8/Materials | Build established: Hauler-Skirmisher 1785 | -8/Materials | Identified exit to Garrison 1785 | -8/Materials | Entered Garrison 1927 | -8/Garrison | Triggered checkpoint 1975 | -8/Garrison | Garrison Relay disabled 2180 | -8/Garrison | Phase Generator disabled 2664 | -8/Garrison | Triggered checkpoint 2738 | -8/Garrison | Destroyed 8 combat bots 3182 | -8/Garrison | Discovered new exit (range 10) 3688 | -8/Garrison | Garrison Relay disabled 3861 | -8/Garrison | Triggered checkpoint 4142 | -8/Garrison | Discovered new exit (range 14) 4271 | -8/Garrison | Triggered checkpoint 4360 | -8/Garrison | Garrison Relay disabled 4679 | -8/Garrison | Triggered checkpoint 4788 | -8/Garrison | Build established: Hauler-Gunner 4929 | -8/Garrison | Triggered checkpoint 4933 | -8/Garrison | Discovered new exit (range 14) 5213 | -8/Garrison | Triggered checkpoint 5270 | -8/Garrison | Installed Relay Interface Framework 5318 | -8/Garrison | Garrison Relay disabled 5795 | -8/Garrison | Learned Materials security intel 5935 | -8/Garrison | Entered Materials 6335 | -8/Materials | First assault squad dispatched 6406 | -8/Materials | Core integrity fell below 50% 6440 | -8/Materials | Core integrity fell below 20% 6472 | -8/Materials | Destroyed by G-50 Soldier with Heavy Laser Last Messages --------------- 06450_ K-01 Serf collects debris. 06453_ Imp. Light Cannon destroyed. 06454_ Acquired 4 matter. 06454_ K-01 Serf collects debris. 06457_ U-05 Engineer builds a Wall. 06458_ Critical hit (Burn: +37). 06458_ Adv. Assault Cannon destroyed. 06459_ K-01 Serf collects debris. 06460_ G-47 Trooper destroyed. 06460_ K-01 Serf collects debris. 06461_ Acquired 40 matter. 06462_ K-01 Serf collects debris. 06465_ Imp. Heat Sink destroyed. 06465_ Arm. Treads destroyed. 06466_ K-01 Serf collects debris. 06469_ Acquired Imp. Heat Sink. 06469_ Plasma Cannon destroyed. 06469_ K-01 Serf collects debris. 06471_ Lgt. Nuclear Core destroyed. 06472_ Dropped Cargo Storage Unit. Map ----- +----------------------------------------------------+ | # #???????????????????????????????????????? | | #####+###########????????????????????????????????? | | ?# =]! #????????????????????????????????? | | ?# ] ! #????????????????????????????????? | | ?# #????????????????????????????????? | | ###### #### #????????????????????????????????? | | ] # #????? #????????????????????????????????? | | # #???????????????????????????????????????? | | """ + #???????????????????????????????????????? | | """ # #???????????????????????????????????????? | | """ # #???????????????????????????????????????? | | # #???????????????????????????????????????? | | ###### #???????????????????????????????????????? | | ?????# #???????????????????????????????????????? | | ?????# #???????????????????????????????????????? | | ?????# #????????????????#####??????????????????? | | ?????# #???????????????? ??????????????????? | | ?????# #????????????????? ???????????????????? | | ????## %##???????????????? " ???????????????????? | | ??# #????????????#####+#####???????????????? | | # ! ###############! % % #???????????????? | | % u!!gk #???????????????? | | ## # ![##+#+##########!!=! #???????????????? | | ?#### * # #?????##u!!! ####????????????? | | ????####### #?????##!m*!![ + #????????????? | | ??????????# #??????#@%/g! #???????????????? | | ??????????# #??????#!*!u* ##??????????????? | | ??????????# #??????#===g! ##??????????????? | | ??????????# #??????#=k!!a ##??????????????? | | ??????????########??????#####/####???????????????? | | ?????????????????????? %% ??????????????? | | ?????????????????????# ??????????? | | ?????????????????????# %% ??????? | | ?????????????????????# ######+#####/######?????? | | ?????????????????????# # ???? #????? ?????????? | | ?????????????????????# ?#????? #??????? ???????? | | ?????????????????????# ???????? #?????????#??????? | | ?????????????????????#????????? #????????????????? | | ??????????????????????????????? #????????????????? | | ??????????????????????????????? #????????????????? | | ??????????????????????????????? #????????????????? | | ????????????????????????????????#????????????????? | | ?????????????????????????????????????????????????? | | ?????????????????????????????????????????????????? | | ?????????????????????????????????????????????????? | | ?????????????????????????????????????????????????? | | ?????????????????????????????????????????????????? | | ?????????????????????????????????????????????????? | | ?????????????????????????????????????????????????? | | ?????????????????????????????????????????????????? | +----------------------------------------------------+ Best States ------------- Heat Dissipation 58 Energy Generation 14 Energy Capacity 280 Matter Stores 300 Matter Capacity 300 Sight Range 16 Robot Scan Range 14 Terrain Scan Range 16 Terrain Scan Density 10 Evasion (%) 40 Recoil Reduction 3 Defensive Hacking 12 Item Schematics ----------------- None Robot Schematics ------------------ None Fabricated ------------ Nothing Repaired ---------- Lgt. Treads | 31% | -8/Materials Alien Tech Used ----------------- None Achievements -------------- Packrat Challenges ------------ None Game ------ Seed CobblerMicroLink Manual? 0 Play Time 00:51:13 Cumulative 69.9 hours Start 2025.09.09 @ 18:17:31 End 2025.09.09 @ 20:33:14 Sessions 1 Manual Loads 0 Difficulty Rogue Special Mode None Game No. 52 Rogue 52 Adventurer 0 Explorer 0 Win Type - Total 0 Types 0/0/0/0/0/0/0/0/0/0 Lore% 19 Gallery% 44 Achievement% 37 Wizard Run 0 Options --------- Layout 0 ASCII 0 Keyboard 0 Movement Mouse Keybinds 0 Fullscreen 1 Font 12/Smallcaps Map View 38x28 Zoom Use 99% Tactical HUD 1 Map Filters NONE Filters NONE Steam SD RUN: 3dd811ea-cea3-4413-8a1d-f5f3dd233fc7